bitfinex/quotes_BTCUSD_20220103
["timestamp","ask_amount","ask_price","bid_price","bid_amount"]
[1641203703993,0.156649,46995.0,46994.0,0.03455989]
[1641203704191,0.49206771,46995.0,46994.0,0.03455989]
[1641203704894,0.44206771,46995.0,46994.0,0.03455989]
[1641203705095,0.33566871,46995.0,46994.0,0.03455989]
[1641203705537,0.00025,46995.0,46994.0,0.08775489]
[1641203705731,0.00025,46995.0,46994.0,0.39218064]
[1641203706232,0.00025,46995.0,46994.0,0.45313392]
[1641203707432,0.00025,46995.0,46994.0,0.50632892]
[1641203708034,0.0003761,46995.0,46994.0,0.40632892]
[1641203708837,0.0003761,46995.0,46994.0,1.11254337]
[1641203709289,0.0003761,46995.0,46994.0,0.40632892]
[1641203709489,0.0003761,46995.0,46994.0,0.50632892]
[1641203709691,0.0003761,46995.0,46994.0,0.77536239]
[1641203710091,0.00011997,46995.0,46994.0,0.67536239]
[1641203710291,0.00011997,46995.0,46994.0,0.35313392]
[1641203710493,0.00011997,46995.0,46994.0,0.77993325]
[1641203710991,0.00011997,46995.0,46994.0,0.0737188]
[1641203713137,0.00011997,46995.0,46994.0,1.15934725]
[1641203713538,0.00011997,46995.0,46994.0,0.4531328]
[1641203714340,0.00011997,46995.0,46994.0,0.5531328]
[1641203714736,0.00011997,46995.0,46994.0,1.71437687]
[1641203715437,0.00011997,46995.0,46994.0,0.4063298]
[1641203715839,0.03221897,46996.0,46994.0,0.6063298]
[1641203716040,0.03221897,46996.0,46995.0,0.46122839]
[1641203716241,0.03221897,46996.0,46995.0,0.74063539]
[1641203716439,0.053194,46997.0,46995.0,0.74063539]
[1641203716799,0.05,46996.0,46995.0,0.41761804]
[1641203716999,0.05,46996.0,46995.0,0.88210337]
[1641203717200,0.05,46996.0,46995.0,0.67087498]
[1641203717398,0.05,46996.0,46995.0,0.57087498]
[1641203717999,0.05,46999.0,46995.0,0.57087498]
[1641203718198,0.05,46999.0,46997.0,0.1]
[1641203718399,0.05,46999.0,46998.0,0.279386]
[1641203718901,0.43007872,46999.0,46998.0,0.279386]
[1641203719098,0.43007872,46999.0,46993.0,0.10639546]
[1641203719499,0.43007872,46999.0,46996.0,0.1]
[1641203719899,0.43007872,46999.0,46997.0,0.58898023]
[1641203720105,0.48327572,46999.0,46997.0,0.68898023]
[1641203720399,0.48327572,46999.0,46997.0,0.58898023]
[1641203721456,0.48327572,46999.0,46997.0,0.55509511]
[1641203721757,0.053201,46997.0,46994.0,0.1]
[1641203721955,0.053201,46997.0,46996.0,0.08507833]
[1641203725409,0.053201,46997.0,46996.0,0.36447533]
[1641203726007,0.053201,46997.0,46996.0,0.39565531]
[1641203726207,0.053201,46997.0,46996.0,0.36447533]
[1641203726609,0.053201,46997.0,46996.0,0.08507833]
[1641203728861,0.053201,46997.0,46982.0,0.28641455]
[1641203728862,0.08223384,46983.0,46982.0,0.28641455]
[1641203729058,0.0553496,46977.0,46975.0,0.71137322]
[1641203729260,0.0478,46976.0,46975.0,0.71137322]
[1641203729460,0.0478,46976.0,46972.0,0.1]
[1641203729461,0.73001732,46976.0,46972.0,0.81137322]
[1641203729656,0.73001732,46976.0,46972.0,0.71137322]
[1641203729657,0.05,46975.0,46972.0,0.71137322]
[1641203729856,0.44458295,46973.0,46972.0,0.71137322]
[1641203730055,0.32024366,46967.0,46961.0,0.002]
[1641203730261,0.053233,46964.0,46961.0,0.002]
[1641203730455,0.053233,46964.0,46962.0,0.279646]
[1641203731059,0.0478,46963.0,46962.0,1.48829454]
[1641203731659,0.0478,46963.0,46962.0,1.20864854]
[1641203731660,0.45934342,46963.0,46962.0,1.20864854]
[1641203732404,0.45934342,46963.0,46961.0,0.002]
[1641203732606,0.33077277,46962.0,46961.0,0.002]
[1641203732804,0.42857277,46962.0,46961.0,0.002]
[1641203734208,0.7758254,46962.0,46961.0,0.002]
[1641203735005,0.80927274,46962.0,46961.0,1.21080962]
[1641203735205,0.46322874,46962.0,46961.0,1.21080962]
[1641203736046,0.80927274,46962.0,46961.0,1.21080962]
[1641203737045,0.80927274,46962.0,46961.0,0.002]
[1641203737247,0.0978,46962.0,46961.0,0.002]
[1641203737845,0.40127801,46962.0,46961.0,0.002]
[1641203738448,0.40256073,46962.0,46961.0,0.002]
[1641203739045,0.09908272,46962.0,46961.0,0.002]
[1641203739686,0.40207372,46962.0,46961.0,0.002]
[1641203740888,0.0978,46962.0,46961.0,0.002]
[1641203741487,0.40503944,46962.0,46961.0,0.002]
[1641203741687,0.70072985,46962.0,46961.0,0.002]
[1641203741887,0.65292985,46962.0,46961.0,0.002]
[1641203742290,0.35723944,46962.0,46961.0,0.002]
[1641203743941,0.05,46962.0,46961.0,0.002]
[1641203744142,0.34772975,46963.0,46961.0,0.002]
[1641203744342,0.29805562,46962.0,46961.0,0.002]
[1641203747600,0.64409962,46962.0,46961.0,0.002]
[1641203750207,0.48310281,46962.0,46961.0,0.002]
[1641203752770,0.53090281,46962.0,46961.0,0.002]
[1641203754793,0.53090281,46962.0,46961.0,0.04200354]
[1641203757397,0.0047,46970.0,46962.0,0.04396129]
[1641203757599,0.98346846,46973.0,46965.0,0.053234]
[1641203757800,0.00826846,46973.0,46967.0,0.04498815]
[1641203758075,0.00826846,46973.0,46965.0,0.05]
[1641203758266,0.0553496,46977.0,46973.0,0.28295157]
[1641203758468,0.0553496,46977.0,46973.0,0.32679201]
[1641203758670,0.0553496,46977.0,46973.0,0.33295157]
[1641203759066,0.0553496,46977.0,46976.0,0.04391731]
[1641203759468,0.0553496,46977.0,46976.0,0.0376373]
[1641203759869,0.0553496,46977.0,46975.0,0.053223]
[1641203760468,0.346044,46976.0,46975.0,0.053223]
[1641203760670,0.0553496,46977.0,46975.0,0.053223]
[1641203760870,0.346044,46976.0,46975.0,0.053223]
[1641203765414,0.496044,46976.0,46975.0,0.053223]
[1641203765654,0.346044,46976.0,46975.0,0.053223]
[1641203768054,0.0553496,46977.0,46975.0,0.053223]
[1641203768553,0.0553496,46977.0,46976.0,0.70953017]
[1641203769407,0.0553496,46977.0,46975.0,0.053223]
[1641203769608,0.0553496,46977.0,46976.0,1.20852354]
[1641203770007,0.0553496,46977.0,46975.0,0.053223]
[1641203771613,0.0553496,46977.0,46976.0,1.20854903]
[1641203771811,0.0553496,46977.0,46975.0,0.053223]
[1641203772212,0.346044,46976.0,46975.0,0.053223]
[1641203773062,0.346044,46976.0,46975.0,0.76427586]
[1641203773551,0.1085806,46977.0,46975.0,0.76427586]
[1641203773751,0.1585806,46977.0,46975.0,0.76427586]
[1641203773954,0.1585806,46977.0,46975.0,0.053223]
[1641203774251,0.346044,46976.0,46975.0,0.053223]
[1641203774853,1.477044,46976.0,46975.0,0.053223]
[1641203775056,0.346044,46976.0,46975.0,0.053223]
[1641203775651,1.477044,46976.0,46975.0,0.053223]
[1641203776055,1.627044,46976.0,46975.0,0.053223]
[1641203778006,0.496044,46976.0,46975.0,0.053223]
[1641203778408,0.48978436,46976.0,46975.0,0.053223]
[1641203778607,1.62078436,46976.0,46975.0,0.053223]
[1641203779006,0.446044,46976.0,46975.0,0.053223]
[1641203779608,0.346044,46976.0,46975.0,0.053223]
[1641203779810,1.477044,46976.0,46975.0,0.053223]
[1641203780311,0.34556049,46976.0,46975.0,0.053223]
[1641203781159,1.47656049,46976.0,46975.0,0.053223]
[1641203781658,1.57656049,46976.0,46975.0,0.053223]
[1641203781858,0.053232,46975.0,46973.0,0.053234]
[1641203782059,0.346044,46974.0,46973.0,0.053234]
[1641203782860,0.34580249,46974.0,46973.0,0.053234]
[1641203784064,1.47680249,46974.0,46971.0,0.053236]
[1641203784303,0.053236,46973.0,46971.0,0.053236]
[1641203784503,0.346073,46972.0,46971.0,0.053236]
[1641203784703,2.12449725,46972.0,46971.0,0.053236]
[1641203786106,0.346073,46972.0,46971.0,0.05301367]
[1641203786708,0.34230257,46972.0,46971.0,0.05301367]
[1641203787106,0.053236,46973.0,46971.0,0.05301367]
[1641203787710,0.346077,46972.0,46971.0,0.05301367]
[1641203788372,0.346077,46972.0,46967.0,0.0083043]
[1641203788373,0.053239,46971.0,46967.0,0.0083043]
[1641203788567,0.053239,46971.0,46967.0,0.0033043]
[1641203788568,1.184243,46969.0,46967.0,0.0033043]
[1641203789068,1.284243,46969.0,46967.0,0.0033043]
[1641203789266,0.346077,46968.0,46967.0,0.0033043]
[1641203789669,0.1,46968.0,46967.0,0.0033043]
[1641203790069,0.053243,46970.0,46967.0,0.0033043]
[1641203790272,0.106469,46976.0,46962.0,0.37657652]
[1641203790472,0.01320438,46974.0,46965.0,0.053231]
[1641203790669,0.01320438,46974.0,46966.0,0.30980533]
[1641203790869,0.01297033,46974.0,46970.0,0.59150288]
[1641203791170,0.00830438,46974.0,46970.0,0.59150288]
[1641203791372,0.00830438,46974.0,46971.0,0.284077]
[1641203791373,0.053233,46973.0,46971.0,0.284077]
[1641203791816,0.00830438,46974.0,46971.0,0.337309]
[1641203792215,0.0553496,46977.0,46971.0,0.337309]
[1641203792415,0.0553496,46977.0,46971.0,0.284077]
[1641203792616,0.053229,46976.0,46972.0,0.59150288]
[1641203792916,0.10434363,46976.0,46973.0,0.053228]
[1641203793517,0.10434363,46976.0,46971.0,0.59150288]
[1641203793918,0.0553496,46977.0,46972.0,0.05323]
[1641203793919,0.05323,46974.0,46972.0,0.05323]
[1641203796271,0.05323,46974.0,46971.0,0.59150288]
[1641203796465,0.053233,46973.0,46971.0,0.59150288]
[1641203796862,1.99905403,46973.0,46971.0,0.59150288]
[1641203798064,1.99905403,46973.0,46970.0,0.59150288]
[1641203798065,0.053233,46973.0,46970.0,0.59150288]
[1641203798268,0.106465,46973.0,46970.0,0.59150288]
[1641203799066,0.053234,46972.0,46970.0,0.59150288]
[1641203799511,0.053234,46972.0,46967.0,0.59150288]
[1641203799714,0.053234,46970.0,46967.0,0.64473588]
[1641203799913,0.053234,46970.0,46968.0,0.284089]
[1641203801715,0.05299221,46970.0,46968.0,0.284089]
[1641203804655,0.053235,46971.0,46966.0,0.59150288]
[1641203805456,0.35534128,46973.0,46967.0,0.053233]
[1641203805457,0.053233,46973.0,46967.0,0.053233]
[1641203805661,0.053226,46978.0,46967.0,0.053233]
[1641203805856,0.053226,46978.0,46968.0,0.284094]
[1641203806059,0.053226,46978.0,46966.0,0.59150288]
[1641203806557,0.56183358,46977.0,46971.0,0.053227]
[1641203806806,0.89907745,46977.0,46971.0,0.053227]
[1641203807005,0.94907745,46977.0,46971.0,0.053227]
[1641203807208,0.6386901,46976.0,46968.0,0.59150288]
[1641203807408,1.4236131,46976.0,46968.0,0.59150288]
[1641203807609,1.4768431,46976.0,46968.0,0.59150288]
[1641203808007,0.3458431,46976.0,46968.0,0.59150288]
[1641203808209,1.4768431,46976.0,46968.0,0.59150288]
[1641203808408,1.4768431,46976.0,46969.0,0.053231]
[1641203808409,0.053232,46973.0,46969.0,0.053231]
[1641203808612,0.05323,46975.0,46968.0,0.59150288]
[1641203809409,0.053231,46973.0,46970.0,0.05323]
[1641203809811,0.31834192,46977.0,46970.0,0.05323]
[1641203810010,0.37157258,46977.0,46970.0,0.05323]
[1641203810210,0.053229,46976.0,46970.0,0.05323]
[1641203810411,0.05323,46974.0,46970.0,0.05323]
[1641203811252,0.053229,46976.0,46970.0,0.05323]
[1641203811848,0.05323,46974.0,46970.0,0.05323]
[1641203812248,0.05323,46974.0,46972.0,0.33359775]
[1641203812449,0.31834192,46977.0,46972.0,0.33359775]
[1641203812848,0.0553496,46977.0,46972.0,0.33359775]
[1641203814048,0.0553496,46977.0,46973.0,0.053228]
[1641203814501,0.1085766,46977.0,46973.0,0.053228]
[1641203814704,0.1618046,46977.0,46973.0,0.053228]
[1641203815103,0.0553496,46977.0,46973.0,0.053228]
[1641203815401,0.0553496,46977.0,46975.0,0.053223]
[1641203817306,0.26590323,46976.0,46975.0,0.053223]
[1641203817503,0.61198023,46976.0,46975.0,0.053223]
[1641203817704,2.0359543,46976.0,46972.0,0.053232]
[1641203817904,0.346077,46975.0,46972.0,0.053232]
[1641203818562,0.39930989,46975.0,46972.0,0.053232]
[1641203818759,0.45254289,46975.0,46972.0,0.053232]
[1641203819360,0.39931,46975.0,46972.0,0.053232]
[1641203819560,0.053233,46975.0,46972.0,0.053232]
[1641203820361,0.31913623,46976.0,46972.0,0.053232]
[1641203820763,0.31913623,46976.0,46972.0,0.64473488]
[1641203821807,2.23994085,46974.0,46972.0,0.64473488]
[1641203822009,0.103233,46976.0,46972.0,0.64473488]
[1641203822209,0.05,46976.0,46972.0,0.64473488]
[1641203822409,0.2118036,46977.0,46972.0,0.64473488]
[1641203822814,0.2118036,46977.0,46973.0,0.053228]
[1641203823112,0.46796052,46977.0,46973.0,0.053228]
[1641203825013,0.41796052,46977.0,46973.0,0.053228]
[1641203825416,0.1085766,46977.0,46973.0,0.053228]
[1641203825660,0.0553496,46977.0,46973.0,0.053228]
[1641203826060,0.0553496,46977.0,46974.0,0.284052]
[1641203826257,0.0553496,46977.0,46975.0,0.053224]
[1641203826460,0.0553496,46977.0,46976.0,0.74582608]
[1641203826664,0.0553496,46977.0,46976.0,1.29659275]
[1641203826861,0.0553496,46977.0,46976.0,1.58062875]
[1641203827258,0.0553496,46977.0,46976.0,1.57242478]
[1641203827859,0.0553496,46977.0,46976.0,0.84284229]
[1641203828059,0.0553496,46977.0,46976.0,0.284036]
[1641203828259,0.0553496,46977.0,46975.0,0.64472688]
[1641203829324,0.0553496,46977.0,46975.0,1.05571065]
[1641203829518,0.0553496,46977.0,46976.0,0.284036]
[1641203831824,0.0553496,46977.0,46975.0,0.64472688]
[1641203832522,0.0553496,46977.0,46975.0,0.053224]
[1641203834662,0.0553496,46977.0,46976.0,0.8780529]
[1641203834867,0.0553496,46977.0,46976.0,0.84801401]
[1641203835462,0.0553496,46977.0,46976.0,1.44089121]
[1641203835661,0.0553496,46977.0,46976.0,0.84801401]
[1641203836061,0.0553496,46977.0,46976.0,1.17286389]
[1641203836562,0.0553496,46977.0,46976.0,0.87481099]
[1641203836817,0.0553496,46977.0,46976.0,1.18275785]
[1641203837023,0.0553496,46977.0,46976.0,1.58626362]
[1641203837422,0.0553496,46977.0,46976.0,1.46697346]
[1641203841957,0.0553496,46977.0,46976.0,1.52019146]
[1641203842558,0.05167709,46977.0,46976.0,1.52019146]
[1641203844400,0.05167709,46977.0,46976.0,0.92802899]
[1641203845103,0.05167709,46977.0,46976.0,0.87481099]
[1641203845403,0.05167709,46977.0,46976.0,1.28283319]
[1641203845802,0.05167709,46977.0,46976.0,0.97481099]
[1641203846003,0.05167709,46977.0,46976.0,2.18329962]
[1641203846606,0.05167709,46977.0,46976.0,2.13329962]
[1641203846806,0.05167709,46977.0,46976.0,2.18329962]
[1641203847009,0.05167709,46977.0,46976.0,1.63523856]
[1641203847208,0.05167709,46977.0,46976.0,1.04446357]
[1641203847413,0.10680577,46979.0,46975.0,0.76365157]
[1641203847610,0.10680577,46979.0,46976.0,0.053229]
[1641203847810,0.346077,46978.0,46976.0,0.053229]
[1641203848064,0.41784886,46978.0,46976.0,0.053229]
[1641203848660,0.39930797,46978.0,46976.0,0.053229]
[1641203849261,0.30334699,46977.0,46976.0,0.053229]
[1641203849965,0.69722399,46977.0,46976.0,0.053229]
[1641203850359,0.45632729,46977.0,46976.0,0.053229]
[1641203850761,0.393877,46977.0,46976.0,0.053229]
[1641203852918,0.0478,46977.0,46976.0,0.053229]
[1641203854119,1.1788,46977.0,46976.0,0.053229]
[1641203854320,1.524877,46977.0,46976.0,0.053229]
[1641203855219,0.393877,46977.0,46976.0,0.053229]
[1641203855870,0.346077,46977.0,46976.0,0.053229]
[1641203856072,0.106462,46978.0,46976.0,0.053229]
[1641203856073,0.053233,46978.0,46976.0,0.053229]
[1641203857772,1.8976493,46977.0,46976.0,0.053229]
[1641203857969,2.2437263,46977.0,46976.0,0.053229]
[1641203859921,0.346077,46977.0,46976.0,0.053229]
[1641203860126,0.053233,46978.0,46976.0,0.053229]
[1641203860523,0.106463,46978.0,46976.0,0.053229]
[1641203861524,0.053233,46978.0,46976.0,0.053229]
[1641203865460,0.10680577,46979.0,46976.0,0.053229]
[1641203865461,0.16003077,46979.0,46976.0,0.053229]
[1641203865662,0.16003077,46979.0,46977.0,0.053225]
[1641203865860,0.08507833,46978.0,46977.0,0.053225]
[1641203868016,2.43047619,46978.0,46977.0,0.053225]
[1641203868216,2.77655319,46978.0,46977.0,0.053225]
[1641203870326,0.43115533,46978.0,46977.0,0.053225]
[1641203870610,0.08507833,46978.0,46977.0,0.053225]
[1641203871591,0.08507833,46978.0,46977.0,0.052511]
[1641203871793,0.16003277,46979.0,46977.0,0.052511]
[1641203871794,0.10680577,46979.0,46978.0,0.04194779]
[1641203871992,0.10680577,46979.0,46978.0,1.02596979]
[1641203872193,0.10680577,46979.0,46978.0,0.32596979]
[1641203872391,0.10680577,46979.0,46978.0,0.87596979]
[1641203872592,0.10680577,46979.0,46978.0,0.32596979]
[1641203872894,0.10680577,46979.0,46978.0,1.20736149]
[1641203873292,0.10680577,46979.0,46978.0,1.25736149]
[1641203873590,0.10680577,46979.0,46978.0,1.30736149]
[1641203877207,0.10680577,46979.0,46978.0,0.66464366]
[1641203879085,0.10680577,46979.0,46978.0,0.61464366]
[1641203879887,0.10680577,46979.0,46977.0,0.052511]
[1641203883125,0.16003177,46979.0,46977.0,0.052511]
[1641203884128,0.41882431,46979.0,46977.0,0.052511]
[1641203888260,0.16003177,46979.0,46977.0,0.052511]
[1641203890715,0.10680577,46979.0,46977.0,0.052511]
[1641203894761,0.16003177,46979.0,46977.0,0.052511]
[1641203895761,0.10680577,46979.0,46977.0,0.052511]
[1641203896563,0.10511217,46979.0,46977.0,0.052511]
[1641203898717,1.9451065,46979.0,46977.0,0.052511]
[1641203898922,0.10511217,46979.0,46977.0,0.052511]
[1641203901965,0.10511217,46979.0,46978.0,0.59089571]
[1641203902364,0.10511217,46979.0,46978.0,0.284021]
[1641203903165,0.10511217,46979.0,46978.0,0.87525963]
[1641203904614,0.10511217,46979.0,46978.0,1.2824857]
[1641203904817,0.08223384,46983.0,46978.0,1.2824857]
[1641203905016,0.08223384,46983.0,46980.0,0.10641608]
[1641203905214,0.08223384,46983.0,46981.0,0.78834597]
[1641203905413,0.08223384,46983.0,46982.0,0.32346328]
[1641203905613,0.08223384,46983.0,46982.0,0.93038534]
[1641203905814,0.08223384,46983.0,46982.0,1.64081291]
[1641203906417,0.08223384,46983.0,46982.0,0.93038534]
[1641203906614,0.08223384,46983.0,46982.0,1.32532844]
[1641203907916,0.08223384,46983.0,46982.0,1.05239738]
[1641203909465,0.08223384,46983.0,46982.0,1.76124351]
[1641203910461,0.08223384,46983.0,46982.0,1.71124351]
[1641203911061,0.08223384,46983.0,46982.0,1.38778023]
[1641203911264,0.08223384,46983.0,46982.0,0.6789341]
[1641203912111,0.08223384,46983.0,46982.0,0.3949431]
[1641203913110,0.08223384,46983.0,46981.0,0.159624]
[1641203919169,0.33443213,46983.0,46981.0,0.159624]
[1641203919419,0.08223384,46983.0,46981.0,0.159624]
[1641203920425,0.346077,46982.0,46981.0,0.159624]
[1641203920922,0.08223384,46983.0,46981.0,0.159624]
[1641203921925,1.21323384,46983.0,46981.0,0.159624]
[1641203925961,0.08223384,46983.0,46981.0,0.159624]
[1641203933064,0.08223384,46983.0,46981.0,0.56493101]
[1641203934543,0.08223384,46983.0,46981.0,0.86576111]
[1641203934743,0.08223384,46983.0,46982.0,0.283992]
[1641203935441,0.08223384,46983.0,46982.0,0.58747221]
[1641203935842,0.08223384,46983.0,46982.0,0.283992]
[1641203936842,0.08223384,46983.0,46981.0,0.67135558]
[1641203937243,0.08223384,46983.0,46981.0,0.61814358]
[1641203938667,0.08223384,46983.0,46982.0,0.283991]
[1641203940868,0.08223384,46983.0,46981.0,0.61814301]
[1641203941171,0.08223384,46983.0,46982.0,0.283991]
[1641203943611,0.08223384,46983.0,46982.0,0.5893855]
[1641203944013,0.08223384,46983.0,46982.0,0.283991]
[1641203945015,0.08223384,46983.0,46981.0,0.77777586]
[1641203945215,0.08223384,46983.0,46981.0,0.82777586]
[1641203945417,0.08223384,46983.0,46981.0,1.13311431]
[1641203945686,0.08223384,46983.0,46982.0,0.58628082]
[1641203946483,0.08223384,46983.0,46982.0,0.283991]
[1641203948886,0.08223384,46983.0,46982.0,0.58579364]
[1641203950913,0.08027095,46983.0,46982.0,0.58579364]
[1641203952212,0.08027095,46983.0,46982.0,1.0063562]
[1641203953466,0.08027095,46983.0,46982.0,1.59664599]
[1641203954363,0.08027095,46983.0,46982.0,1.0063562]
[1641203955365,0.08027095,46983.0,46982.0,0.70455356]
[1641203955563,0.08027095,46983.0,46982.0,0.283991]
[1641203962164,0.08027095,46983.0,46982.0,0.58464067]
[1641203962964,0.08027095,46983.0,46982.0,0.283991]
[1641203972029,0.08027095,46983.0,46982.0,0.333991]
[1641203972229,0.08027095,46983.0,46982.0,0.283991]
[1641203976789,0.08027095,46983.0,46982.0,0.333991]
[1641203979730,0.08027095,46983.0,46982.0,0.283991]
[1641203980530,0.08027095,46983.0,46982.0,0.87623075]
[1641203980828,0.08027095,46983.0,46982.0,0.283991]
[1641203981533,0.13027095,46983.0,46982.0,0.283991]
[1641203981730,0.13027095,46983.0,46982.0,0.8762212]
[1641203982542,0.08027095,46983.0,46982.0,0.8762212]
[1641203982935,0.08027095,46983.0,46982.0,0.283991]
[1641203983587,0.08027095,46983.0,46982.0,0.60492504]
[1641203984589,0.08027095,46983.0,46982.0,1.19715524]
[1641203984989,0.08027095,46983.0,46982.0,1.24715524]
[1641203985190,0.08027095,46983.0,46982.0,1.72941028]
[1641203985585,0.08027095,46983.0,46982.0,2.01313088]
[1641203985785,0.46260622,46986.0,46984.0,0.30923688]
[1641203985987,0.46260622,46986.0,46985.0,0.39889167]
[1641203986188,0.46260622,46986.0,46985.0,0.54889167]
[1641203986586,0.03700122,46986.0,46985.0,0.54889167]
[1641203987425,0.00831513,46997.0,46985.0,0.54889167]
[1641203987426,0.00831513,46997.0,46985.0,0.9052496]
[1641203987626,0.00831513,46997.0,46992.0,0.10639685]
[1641203987826,0.00831513,46997.0,46995.0,0.24778601]
[1641203988025,0.00831513,46997.0,46995.0,0.30098575]
[1641203988226,0.0048,47002.0,46995.0,0.30098575]
[1641203988627,0.053201,47001.0,46999.0,0.30159583]
[1641203989326,0.106401,47001.0,46999.0,0.30087365]
[1641203989730,0.346077,47000.0,46999.0,0.30087365]
[1641203989925,0.346077,47000.0,46998.0,0.053201]
[1641203990125,0.446077,47000.0,46998.0,0.053201]
[1641203991179,0.346077,47000.0,46998.0,0.053201]
[1641203991578,0.106401,47001.0,46998.0,0.053201]
[1641203991777,0.346077,47000.0,46998.0,0.053201]
[1641203991979,0.156401,47001.0,46998.0,0.053201]
[1641203992180,0.346077,47000.0,46998.0,0.053201]
[1641203994182,0.106401,47001.0,46998.0,0.053201]
[1641203995732,0.346077,47000.0,46998.0,0.053201]
[1641203995933,0.106401,47001.0,46998.0,0.053201]
[1641203997936,0.346077,47000.0,46998.0,0.053201]
[1641203998376,0.106401,47001.0,46998.0,0.053201]
[1641203998775,0.45249,47000.0,46998.0,0.053201]
[1641204000575,0.346077,47000.0,46998.0,0.053201]
[1641204000778,0.34491479,47000.0,46998.0,0.053201]
[1641204001177,0.106407,47001.0,46998.0,0.053201]
[1641204002134,0.346038,47000.0,46998.0,0.053201]
[1641204002332,0.29157289,46999.0,46998.0,0.053201]
[1641204002533,0.63761089,46999.0,46997.0,0.106401]
[1641204002735,0.159622,47000.0,46997.0,0.106401]
[1641204002736,0.63362002,46998.0,46997.0,0.106401]
[1641204003137,1.131,47002.0,46997.0,0.106401]
[1641204003335,0.99519926,47025.0,46997.0,0.156401]
[1641204003538,0.3725165,47022.0,47017.0,0.46705514]
[1641204003737,0.0004,47032.0,47025.0,1.21203863]
[1641204003945,1.51682974,47038.0,47031.0,0.12332614]
[1641204003946,0.0004,47036.0,47031.0,0.12332614]
[1641204004138,0.23188031,47042.0,47036.0,0.5306887]
[1641204004334,0.0002,47044.0,47042.0,0.45218738]
[1641204004540,0.0002,47046.0,47044.0,1.52779979]
[1641204004839,0.3714,47056.0,47045.0,0.11118502]
[1641204004840,0.32842665,47050.0,47045.0,0.11118502]
[1641204005039,0.00831429,47051.0,47045.0,0.11118502]
[1641204005236,0.0003,47066.0,47045.0,0.11118502]
[1641204005447,0.00016479,47547.0,47064.0,0.29613734]
[1641204005448,0.33104844,47068.0,47064.0,0.29613734]
[1641204005703,0.61158923,47069.0,47067.0,0.06242763]
[1641204005900,0.18673413,47069.0,47068.0,0.79237472]
[1641204006103,0.0003,47078.0,47069.0,0.284]
[1641204006104,0.0001,47073.0,47069.0,0.284]
[1641204006301,0.0001,47073.0,47071.0,0.00121344]
[1641204006501,0.0001,47073.0,47072.0,0.446915]
[1641204006698,0.0001,47073.0,47072.0,0.44381]
[1641204006897,0.0001,47073.0,47072.0,0.44591]
[1641204007098,0.00137805,47073.0,47072.0,0.44591]
[1641204007300,0.00137805,47073.0,47072.0,0.54581]
[1641204007501,0.00137805,47073.0,47072.0,0.56568518]
[1641204007700,0.00137805,47073.0,47072.0,1.01727075]
[1641204007902,0.0001,47074.0,47073.0,0.16008985]
[1641204008106,0.0001,47074.0,47073.0,1.22423509]
[1641204008300,0.0002,47075.0,47073.0,1.25359825]
[1641204008301,0.0001,47075.0,47073.0,1.25359825]
[1641204008600,0.0001,47075.0,47074.0,0.39710819]
[1641204008803,0.0001,47075.0,47074.0,0.46412819]
[1641204009102,0.0021,47079.0,47078.0,0.00064621]
[1641204009334,0.00137849,47079.0,47078.0,0.28458521]
[1641204009934,0.00137849,47079.0,47078.0,0.33758521]
[1641204010139,0.00137849,47079.0,47078.0,0.33448521]
[1641204010334,0.00137849,47079.0,47078.0,0.00044621]
[1641204010335,0.21137849,47079.0,47078.0,0.00044621]
[1641204010536,0.20104235,47079.0,47078.0,0.00044621]
[1641204010737,0.20104235,47079.0,47078.0,0.34638621]
[1641204010937,0.20104235,47079.0,47078.0,0.28420521]
[1641204011234,0.20104235,47079.0,47078.0,0.28410521]
[1641204011437,0.20104235,47079.0,47078.0,0.70402064]
[1641204011634,0.20104235,47079.0,47078.0,0.70526645]
[1641204011833,0.20104235,47079.0,47078.0,0.70516645]
[1641204012035,0.20104235,47079.0,47078.0,0.96381944]
[1641204012235,0.20104235,47079.0,47078.0,1.26246227]
[1641204012734,0.20104235,47079.0,47078.0,1.26236227]
[1641204012936,0.20104235,47079.0,47078.0,1.39268373]
[1641204013181,0.20104235,47079.0,47078.0,0.8127695]
[1641204013385,0.008734,47081.0,47079.0,1.4]
[1641204013583,0.0001,47082.0,47080.0,0.2]
[1641204013779,0.0001,47082.0,47081.0,0.59400637]
[1641204013979,0.0001,47082.0,47081.0,0.33276545]
[1641204014182,0.00016432,47082.0,47081.0,0.14892645]
[1641204014383,0.02030102,47083.0,47082.0,0.00111179]
[1641204014581,0.02030102,47083.0,47082.0,0.4494689]
[1641204014778,0.02030102,47083.0,47082.0,0.4493689]
[1641204014981,0.0001,47085.0,47083.0,0.283793]
[1641204015181,0.0001,47085.0,47084.0,0.45607963]
[1641204015381,0.0083836,47093.0,47084.0,0.45607963]
[1641204015382,0.0083836,47093.0,47085.0,1.62378]
[1641204015587,0.0002,47108.0,47085.0,1.62378]
[1641204015588,0.00028613,47116.0,47109.0,0.21531455]
[1641204015784,0.0101,47114.0,47109.0,0.62543455]
[1641204015987,0.00028613,47116.0,47111.0,0.63208751]
[1641204016187,0.00028613,47116.0,47115.0,0.345476]
[1641204016483,0.8021,47123.0,47115.0,0.345476]
[1641204016484,0.21531455,47123.0,47118.0,0.05305]
[1641204016686,0.21531455,47123.0,47122.0,0.445431]
[1641204016946,0.0001,47131.0,47122.0,0.55427192]
[1641204017149,0.0001,47131.0,47123.0,0.28482303]
[1641204017347,0.2934235,47130.0,47123.0,1.01043633]
[1641204017545,0.2934235,47130.0,47123.0,0.67348159]
[1641204017546,0.02076683,47124.0,47123.0,0.67348159]
[1641204017745,0.02076683,47124.0,47123.0,0.67367716]
[1641204018145,0.02076683,47124.0,47123.0,0.67357716]
[1641204018344,0.02076683,47124.0,47123.0,0.67347716]
[1641204018554,0.02076683,47124.0,47123.0,0.283571]
[1641204018747,0.02076683,47124.0,47122.0,0.05]
[1641204018953,0.00131811,47131.0,47115.0,0.053054]
[1641204018954,0.22052,47154.0,47149.0,0.42693402]
[1641204019149,0.22052,47154.0,47150.0,0.0478]
[1641204019347,0.22052,47154.0,47153.0,0.282788]
[1641204019552,0.02,47154.0,47153.0,0.97953741]
[1641204019745,0.02054774,47154.0,47153.0,0.92943741]
[1641204019945,0.02054774,47154.0,47153.0,0.90719563]
[1641204020143,0.02054774,47154.0,47153.0,0.90699563]
[1641204020344,0.00013341,47157.0,47153.0,1.06803655]
[1641204020345,0.008404,47155.0,47153.0,1.06803655]
[1641204020594,0.00013341,47157.0,47156.0,0.05112489]